bitfinex-derivatives/quotes_ETHF0:USTF0_20250810
["timestamp","ask_amount","ask_price","bid_price","bid_amount"]
[1754816291272,3.6643,4211.2,4211.1,0.2726]
[1754816292081,3.6643,4211.2,4211.1,1.5336]
[1754816292976,25.3288,4211.2,4211.1,1.5336]
[1754816294277,22.121,4211.2,4211.1,1.5336]
[1754816295074,0.4565,4211.6,4211.5,2.00845]
[1754816295275,22.5585,4211.6,4211.5,2.00845]
[1754816295578,0.1856,4211.6,4211.5,2.00845]
[1754816295879,22.2876,4211.6,4211.5,2.00845]
[1754816296876,3.2078,4211.7,4211.5,1.09795]
[1754816297182,3.2078,4211.7,4211.6,1.5336]
[1754816299676,3.3934,4211.7,4211.6,1.5336]
[1754816299880,3.6643,4211.7,4211.6,1.5336]
[1754816304281,0.4565,4211.7,4211.6,1.5336]
[1754816304879,3.663,4212.2,4212.1,1.5336]
[1754816305079,25.726,4212.2,4212.1,1.5336]
[1754816305673,25.4564,4212.2,4212.1,1.5336]
[1754816306182,3.2078,4212.2,4212.1,1.5336]
[1754816306379,3.663,4212.2,4212.1,1.5336]
[1754816306579,3.663,4212.2,4212.1,1.1501]
[1754816306779,3.2078,4212.2,4212.1,1.5336]
[1754816308985,3.3934,4212.2,4212.1,1.5336]
[1754816309488,3.663,4212.2,4212.1,1.5336]
[1754816310384,3.3934,4212.2,4212.1,1.5336]
[1754816311886,22.049,4212.4,4212.3,0.6231]
[1754816312082,0.4552,4212.7,4212.6,0.3835]
[1754816312277,0.1856,4212.7,4212.6,1.5336]
[1754816312481,3.3934,4213.3,4213.2,1.5336]
[1754816312681,25.682,4213.3,4213.2,1.5336]
[1754816312986,25.682,4213.3,4213.1,0.47467]
[1754816313188,25.682,4213.3,4213.2,0.2726]
[1754816313886,25.682,4213.3,4213.2,1.5336]
[1754816314186,3.663,4213.3,4213.2,1.5336]
[1754816314580,25.678,4213.3,4213.2,1.5336]
[1754816316385,25.3999,4213.3,4213.2,1.2853]
[1754816316581,25.6791,4213.3,4213.2,1.5651]
[1754816324994,26.15375,4213.3,4213.2,1.5651]
[1754816325388,25.6791,4213.3,4213.2,1.5651]
[1754816327393,3.6661,4213.3,4213.2,1.5651]
[1754816327599,25.6171,4213.3,4213.2,1.5651]
[1754816328094,3.3869,4213.3,4213.2,1.5651]
[1754816328302,25.3319,4213.3,4213.2,1.5651]
[1754816328593,25.6111,4213.3,4213.2,1.5651]
[1754816328988,3.6661,4213.3,4213.2,1.5651]
[1754816329196,25.6041,4213.3,4213.2,1.5651]
[1754816332596,3.6661,4213.3,4213.2,1.5651]
[1754816332794,25.1378,4213.3,4213.2,1.5651]
[1754816333194,3.3869,4213.3,4213.2,1.5651]
[1754816333393,25.5871,4213.3,4213.2,1.5651]
[1754816333794,22.3793,4213.3,4213.2,1.5651]
[1754816335494,0.4583,4213.3,4213.2,1.5651]
[1754816339800,0.4583,4213.3,4213.2,0.8957]
[1754816339997,0.4583,4213.3,4213.2,1.5651]
[1754816341997,0.65379,4212.9,4212.8,0.2655]
[1754816342199,22.81699,4212.9,4212.8,0.2655]
[1754816342898,23.35980097,4212.9,4212.8,0.2655]
[1754816343300,23.35980097,4212.9,4212.8,1.39]
[1754816343499,23.35980097,4212.9,4212.8,1.5754]
[1754816344505,23.35980097,4212.9,4212.8,1.1858]
[1754816344803,22.88511097,4212.9,4212.8,1.5754]
[1754816346005,22.3393,4212.9,4212.8,1.5858]
[1754816346401,3.6652,4213.3,4213.2,0.6248]
[1754816346597,25.5472,4213.3,4213.2,1.5774]
[1754816346792,26.08940923,4213.3,4213.2,1.5774]
[1754816347203,25.81700923,4213.3,4213.2,1.5774]
[1754816347402,26.09140923,4213.3,4213.2,1.5774]
[1754816347708,25.5492,4213.3,4213.2,1.5774]
[1754816350205,25.0918,4213.3,4213.2,1.5774]
[1754816350598,25.5482,4213.3,4213.2,1.5774]
[1754816351604,25.5492,4213.3,4213.2,1.5774]
[1754816352505,25.0918,4213.3,4213.2,0.8976]
[1754816352701,26.02385,4213.3,4213.2,0.4588]
[1754816352899,26.5660446,4213.3,4213.2,0.4588]
[1754816353102,26.5660446,4213.3,4213.2,0.7205]
[1754816353503,26.5660446,4213.3,4213.2,1.1386]
[1754816353700,0.1773,4212.9,4212.8,0.6248]
[1754816353897,0.1773,4212.9,4212.8,1.3046]
[1754816353898,22.7581,4212.9,4212.8,1.3046]
[1754816355710,22.7581,4212.9,4212.8,0.7227]
[1754816355911,22.7581,4212.9,4212.8,0.2728]
[1754816356107,0.183,4212.4,4212.3,1.4025]
[1754816356302,22.7581,4212.4,4212.3,1.5774]
[1754816357405,22.7581,4212.4,4212.3,0.5367]
[1754816358310,0.89459674,4212.1,4212.0,1.5774]
[1754816359605,0.35679674,4212.1,4211.9,0.4748]
[1754816359810,0.8981,4212.0,4211.9,1.5774]
[1754816360208,25.9619,4212.0,4211.9,0.8976]
[1754816360410,25.9619,4212.0,4211.9,0.2728]
[1754816361409,0.3603,4211.5,4211.4,0.8976]
[1754816361716,0.6337,4211.5,4211.4,1.5774]
[1754816362312,0.8981,4211.5,4211.4,1.5774]
[1754816363214,21.857,4211.9,4211.8,0.6248]
[1754816363415,21.857,4211.9,4211.8,1.5774]
[1754816363610,22.4907,4211.9,4211.8,1.5774]
[1754816364115,22.2173,4211.9,4211.8,1.5774]
[1754816364320,3.2078,4212.0,4211.9,2.05221]
[1754816364916,25.6329,4212.5,4212.4,2.05214]
[1754816365117,26.3536,4212.5,4212.4,2.05214]
[1754816365308,25.0618,4212.5,4212.4,2.05214]
[1754816365512,26.3536,4212.5,4212.4,2.05214]
[1754816366717,4.4996,4212.5,4212.4,2.05214]
[1754816366916,25.0538,4212.5,4212.4,2.05214]
[1754816367312,25.4476,4212.5,4212.4,2.05214]
[1754816367527,26.0722,4212.5,4212.4,2.05214]
[1754816367718,26.3456,4212.5,4212.4,2.05214]
[1754816368018,25.0538,4212.5,4212.4,0.47474]
[1754816368224,26.3456,4212.5,4212.4,1.63404]
[1754816368414,26.3456,4212.5,4212.4,2.05214]
[1754816368618,26.61,4212.5,4212.4,2.05214]
[1754816369023,26.61,4212.5,4212.4,1.5774]
[1754816373123,0.1773,4211.3,4211.2,1.3046]
[1754816373330,0.7055,4212.0,4211.9,0.47481]
[1754816373530,22.5525,4212.0,4211.9,1.3046]
[1754816374127,22.8169,4212.0,4211.9,1.3046]
[1754816374434,0.9699,4212.0,4211.9,1.3046]
[1754816374629,0.4417,4212.0,4211.9,1.3046]
[1754816374934,0.2644,4212.0,4211.9,1.3046]
[1754816375132,0.2644,4212.0,4211.9,1.5774]
[1754816375333,21.844,4212.1,4212.0,2.0639]
[1754816375528,0.1756,4212.4,4212.3,2.06386]
[1754816375734,22.0196,4212.4,4212.3,1.5891]
[1754816376432,22.5437,4212.4,4212.3,1.5891]
[1754816376639,22.8021,4212.4,4212.3,0.4582]
[1754816376932,22.8021,4212.4,4212.3,0.2745]
[1754816377228,0.434,4212.1,4212.0,1.1257]
[1754816377435,22.7971,4212.1,4212.0,1.1257]
[1754816378035,22.7971,4212.1,4212.0,0.4582]
[1754816378232,0.434,4211.9,4211.8,3.2078]
[1754816378433,0.9581,4211.9,4211.8,3.2078]
[1754816379135,0.9581,4211.9,4211.8,3.9451]
[1754816379337,0.9581,4211.9,4211.8,4.3335]
[1754816379840,0.9581,4211.9,4211.8,3.2078]
[1754816380334,0.9581,4211.9,4211.8,3.4823]
[1754816380530,0.9581,4211.9,4211.8,3.2078]
[1754816380732,0.9581,4211.6,4211.5,1.1257]
[1754816380937,22.7951,4211.6,4211.5,1.1257]
[1754816381132,22.7951,4211.6,4211.5,1.3116]
[1754816381335,22.7951,4211.6,4211.5,1.5891]
[1754816382738,22.7951,4211.6,4211.5,1.3116]
[1754816383128,22.7951,4211.6,4211.5,0.7373]
[1754816383333,22.7951,4211.6,4211.5,0.4582]
[1754816383737,22.7951,4211.6,4211.5,1.1257]
[1754816384135,22.7951,4211.6,4211.5,1.3116]
[1754816384330,0.2612,4212.0,4211.9,0.47481]
[1754816384537,22.2738,4212.0,4211.9,1.5891]
[1754816386441,0.91156,4212.3,4212.2,0.6487]
[1754816386742,22.5377,4212.3,4212.2,1.5891]
[1754816387435,22.7961,4212.3,4212.2,1.5891]
[1754816389840,22.7961,4212.3,4212.2,2.06387]
[1754816391643,22.7961,4212.3,4212.2,1.5891]
[1754816391944,23.26986,4212.3,4212.2,1.5891]
[1754816394140,23.26986,4212.3,4212.2,1.3116]
[1754816394940,23.26986,4212.3,4212.2,1.78637]
[1754816395146,22.7951,4212.3,4212.2,1.78637]
[1754816395341,0.4368,4212.3,4212.2,1.78637]
[1754816395645,22.2728,4212.3,4212.2,2.06387]
[1754816395941,0.1756,4212.3,4212.2,2.06387]
[1754816396242,0.4368,4212.3,4212.2,2.06387]
[1754816396443,0.9581,4212.3,4212.2,2.06387]
[1754816396842,0.9581,4212.3,4212.2,1.5891]
[1754816397243,0.9581,4212.0,4211.9,1.51191]
[1754816397847,0.9581,4212.0,4211.9,2.06391]
[1754816400142,0.9581,4212.0,4211.9,1.1257]
[1754816400347,0.9581,4212.0,4211.9,1.3116]
[1754816400546,22.0972,4212.1,4212.0,2.0639]
[1754816400849,0.1756,4212.3,4212.2,1.40097]
[1754816401349,3.2078,4212.9,4212.7,0.47472]
[1754816401549,3.6446,4212.9,4212.8,1.5891]
[1754816403047,3.2078,4213.4,4212.8,1.1241]
[1754816403253,3.9047,4213.4,4213.3,1.5891]
[1754816403452,25.7387,4213.4,4213.3,1.5891]
[1754816403846,25.9999,4213.4,4213.3,1.5891]
[1754816404047,22.7921,4213.4,4213.3,1.5891]
[1754816404351,22.7921,4213.4,4213.3,1.3116]
[1754816406650,0.71,4212.9,4212.7,0.47472]
[1754816406850,22.8138,4212.8,4212.7,0.73542]
[1754816407248,25.0398,4212.8,4211.9,1.18704]
[1754816407451,25.0398,4212.8,4211.8,4.1277]
[1754816407452,25.4958,4212.8,4212.7,0.6403]
[1754816407848,25.4958,4212.8,4212.7,1.2896]
[1754816408051,26.0216,4212.8,4212.7,1.2896]
[1754816410560,26.0216,4212.8,4212.7,1.5692]
[1754816414252,0.93066,4213.2,4213.1,0.6403]
[1754816414452,23.02506,4213.2,4213.1,1.5692]
[1754816414752,23.28746,4213.2,4213.1,1.5692]
[1754816414954,23.02406,4213.2,4213.1,1.2896]
[1754816415152,23.28746,4213.2,4213.1,1.2896]
[1754816415354,22.8128,4213.2,4213.1,1.5692]
[1754816415960,3.2078,4213.3,4213.1,2.04386]
[1754816416257,25.3012,4213.3,4213.2,1.5692]
[1754816416458,25.4854,4213.3,4213.2,1.5692]
[1754816416658,26.0206,4213.3,4213.2,1.2896]
[1754816417254,26.0206,4213.3,4213.2,1.5692]
[1754816420060,1.26750103,4214.8,4213.7,1.5859]
[1754816420061,3.2078,4213.8,4213.7,1.5859]
[1754816420257,3.2078,4213.8,4213.7,2.0438]
[1754816420862,3.2078,4213.8,4213.7,8.20857374]
[1754816421360,3.2078,4213.8,4213.7,8.0438]
[1754816422958,21.828,4214.5,4214.4,2.04373]
[1754816422959,3.2078,4214.5,4214.4,2.04373]
[1754816424158,3.6544,4214.5,4214.4,2.04373]
[1754816424361,4.3298,4214.5,4214.4,2.04373]
[1754816426163,3.6544,4214.5,4214.4,2.04373]
[1754816426359,3.2078,4214.5,4214.4,2.04373]
[1754816427155,0.2624,4214.8,4214.7,0.47449]
[1754816427361,0.1842,4215.1,4215.0,2.04366]
[1754816427561,3.9262,4215.2,4215.1,1.5692]
[1754816427864,4.7674,4215.2,4215.1,1.5692]
[1754816428768,4.7674,4215.2,3190.0,1.14643164]
[1754816428769,0.6388,4214.0,4213.9,0.6403]
[1754816428962,0.6388,4214.0,4213.8,0.47459]
[1754816429162,1.5596,4213.9,4213.8,1.50349]
[1754816429359,0.6388,4213.5,4213.4,0.47463]
[1754816429563,0.6388,4213.5,4213.3,0.47464]
[1754816429758,1.5596,4213.4,4213.3,1.37564]
[1754816429964,3.9262,4213.9,4213.8,1.39449]
[1754816430162,4.5126,4213.9,4213.8,1.2896]
[1754816430365,4.7674,4213.9,4213.8,1.2896]
[1754816430863,4.7674,4213.9,4213.8,1.0117]
[1754816431065,1.5596,4213.2,4213.1,1.37567]
[1754816431371,1.3048,4213.2,4213.1,2.04387]
[1754816431765,0.7184,4213.7,4213.6,2.04381]
[1754816431961,1.122,4213.7,4213.6,1.37561]
[1754816432165,1.5596,4213.7,4213.6,0.91941]
[1754816432670,1.5596,4213.7,4213.6,2.04381]
[1754816432970,1.5596,4213.7,4213.6,1.2896]
[1754816433565,1.5596,4213.7,4213.6,0.7227]
[1754816433766,0.9012,4212.9,4212.8,4.97211]
[1754816433968,1.5596,4212.9,4212.8,1.76431]
[1754816434663,1.5596,4212.9,4212.8,2.04391]
[1754816434859,3.2078,4213.4,4213.1,0.47467]
[1754816435059,3.6544,4213.4,4213.3,1.5692]
[1754816435269,3.2078,4213.4,4213.3,1.5692]
[1754816438169,1.0414,4213.5,4213.4,1.5608]
[1754816438366,0.8631,4213.9,4213.8,0.73879]
[1754816438566,3.2078,4214.0,4213.9,1.5608]
[1754816438769,0.4494,4214.4,4214.3,0.6235]
[1754816439066,3.2078,4214.5,4214.3,2.03534]
[1754816439267,3.2078,4214.5,4214.3,1.09804]
[1754816439467,3.2078,4214.5,4214.4,1.5608]
[1754816440267,0.2711,4214.8,4214.5,0.47451]
[1754816440575,0.4107,4215.0,4214.3,0.47454]
[1754816440576,1.3125,4215.0,4214.9,1.2887]
[1754816440873,1.5761,4215.0,4214.9,1.2887]
[1754816441174,1.3125,4215.0,4214.9,1.5608]
[1754816442669,3.2078,4215.1,4215.0,0.47446]
[1754816442871,4.342,4215.1,4215.0,2.03526]
[1754816443175,4.7839,4215.1,4215.0,2.03526]
[1754816443367,4.5203,4215.1,4215.0,2.03526]
[1754816443874,3.9313,4215.1,4215.0,2.03526]
[1754816445074,4.5203,4215.1,4215.0,2.03526]
[1754816445471,4.5203,4215.1,4214.9,0.47446]
[1754816445671,1.5761,4215.0,4214.9,0.47446]
[1754816445867,1.5761,4214.7,4214.6,0.714]
[1754816446066,1.5761,4214.7,4214.6,1.1885]
[1754816446271,1.5761,4214.7,4214.6,1.7632]
[1754816446871,1.5761,4214.7,4214.6,2.0353]
[1754816447476,1.5761,4214.7,4214.6,1.7632]
[1754816448274,1.5761,4214.7,4214.6,1.3134]
[1754816448577,1.5761,4214.1,4214.0,4.97107]
[1754816448777,1.5761,4214.1,4214.0,5.13615579]
[1754816449077,1.1342,4214.5,4214.4,0.6235]
[1754816449383,1.1342,4214.5,4214.4,1.5608]
[1754816449575,1.5761,4214.5,4214.4,2.03533]
[1754816449777,1.5761,4214.5,4214.4,1.76323]
[1754816450668,1.5761,4214.5,4214.4,2.03533]
[1754816451173,1.5761,4214.5,4214.4,1.76323]
[1754816454577,1.3125,4214.5,4214.4,2.03533]
[1754816454776,1.1342,4214.5,4214.4,2.03533]
[1754816455579,0.7235,4214.5,4214.4,2.03533]
[1754816455771,0.2711,4214.6,4214.4,1.09803]
[1754816455977,0.4494,4214.6,4214.5,1.5608]
[1754816458377,1.5761,4214.9,4214.8,1.09798]
[1754816458587,1.5761,4214.9,4214.8,2.03528]
[1754816458883,1.3125,4214.9,4214.8,2.03528]
[1754816459483,1.5761,4214.9,4214.8,2.03528]
[1754816459985,1.3125,4214.9,4214.8,2.03528]
[1754816460184,1.5761,4214.9,4214.8,2.03528]
[1754816460378,1.5761,4214.9,4214.8,1.76318]
[1754816462084,1.5761,4214.9,4214.8,0.47448]
[1754816462287,0.6307,4214.2,4214.1,3.2078]
[1754816462485,1.5761,4214.2,4214.1,3.65492858]
[1754816462685,1.5761,4214.2,4214.1,0.64878858]
[1754816464685,1.5761,4214.2,4214.1,0.92168858]
[1754816464985,1.5761,4214.2,4214.1,0.64878858]
[1754816465186,1.5761,4214.2,4214.1,1.75017046]
[1754816465487,1.5761,4214.2,4214.1,1.91997046]
[1754816466287,1.5761,4214.2,4214.1,2.18937046]
[1754816467690,0.4494,4214.2,4214.1,2.18937046]
[1754816467990,0.7078,4214.2,4214.1,2.18937046]
[1754816468286,1.3046,4214.2,4214.1,2.18937046]
[1754816468678,1.5713,4214.2,4214.1,2.18937046]
[1754816469086,1.5713,4214.2,4214.1,1.91997046]
[1754816469385,1.5713,4214.2,4214.1,0.64907046]
[1754816469687,1.5713,4214.2,4214.1,1.52137046]
[1754816469894,1.5713,4214.2,4214.1,1.90427046]
[1754816471392,1.5713,4214.2,4214.1,2.17367046]
[1754816471894,1.3046,4214.2,4214.1,0.64907046]
[1754816472099,1.5713,4214.2,4214.1,1.90427046]
[1754816473598,1.5713,4214.2,4214.1,1.90467192]
[1754816474201,1.5713,4214.2,4214.1,2.17407192]
[1754816476502,1.3046,4214.2,4214.1,2.17407192]
[1754816477803,1.5713,4214.2,4214.1,2.17407192]
[1754816479610,1.5713,4214.2,4214.1,1.90467192]
[1754816482603,1.5713,4214.2,4214.1,2.17407192]
[1754816483310,1.3046,4214.2,4214.1,2.17407192]
[1754816484311,1.5713,4214.2,4214.1,2.17407192]
[1754816486507,1.5713,4214.2,4214.1,1.99916]
[1754816486708,1.5713,4214.2,4214.1,2.16735837]
[1754816486908,1.3046,4214.2,4214.1,2.16735837]
[1754816487110,4.7941,4214.6,4214.5,0.89991]
[1754816487415,4.7941,4214.6,4214.5,1.72971]
[1754816488510,0.1856,4214.8,4214.7,1.33909]
[1754816488708,0.4644,4214.8,4214.7,1.99909]
[1754816488910,0.1856,4214.8,4214.7,1.99909]
[1754816489108,0.1856,4214.8,4214.7,2.16719323]
[1754816489516,0.4644,4214.8,4214.7,2.16719323]
[1754816490115,3.2078,4215.1,4215.0,1.06966]
[1754816490420,3.2078,4215.1,4215.0,2.16714921]
[1754816491211,3.2078,4215.1,4215.0,1.99906]
[1754816492017,0.2788,4215.3,4215.0,1.99906]
[1754816492212,0.6196,4215.4,4215.3,1.06962]
[1754816492413,0.8863,4215.4,4215.3,1.99902]
[1754816492918,1.5863,4215.4,4215.3,1.99902]
[1754816493316,3.2078,4215.7,4215.3,1.99902]
[1754816493317,3.2078,4215.7,4215.6,0.47439]
[1754816493519,4.7941,4215.7,4215.6,1.72959]
[1754816493822,4.3518,4215.7,4215.6,1.99899]
[1754816494020,3.9306,4215.7,4215.6,2.1670089]
[1754816494318,3.6722,4215.7,4215.6,2.1670089]
[1754816494516,3.2078,4215.7,4215.6,2.1670089]
[1754816495017,3.6722,4215.7,4215.6,2.1670089]
[1754816495223,4.7941,4215.7,4215.6,1.8976089]
[1754816496017,4.7941,4215.7,4215.6,2.1660089]
[1754816496516,4.7941,4215.7,4215.6,0.1680189]
[1754816496721,0.6152,4215.6,4215.4,0.47441]
[1754816496911,1.585,4215.5,4215.4,0.47441]
[1754816497717,0.9698,4215.4,4215.3,0.47442]
[1754816497918,1.585,4215.4,4215.3,0.47442]
[1754816498118,0.8879,4215.2,4215.1,0.47444]
[1754816498318,1.585,4215.2,4215.1,0.47444]
[1754816498514,0.8908,4215.2,4215.1,1.57244]
[1754816498717,1.3123,4215.5,4215.4,1.34511]
[1754816498919,1.3123,4215.5,4215.4,1.61351]
[1754816499119,0.4609,4215.5,4215.4,1.61351]
[1754816499330,0.4609,4215.5,4215.4,2.02651]
[1754816499620,3.2078,4215.7,4215.4,2.02651]
[1754816499820,4.5172,4215.7,4215.6,1.5521]
[1754816500019,3.823,4215.7,4215.4,0.47441]
[1754816500214,1.3094,4215.5,4215.4,0.47441]
[1754816500420,1.585,4215.5,4215.4,0.47441]
[1754816500827,0.6152,4215.5,4214.7,0.2684]
[1754816501025,1.585,4214.9,4214.8,1.92593616]
[1754816501528,4.7928,4215.7,4215.6,0.47439]
[1754816501820,0.9698,4215.6,4215.5,0.4744]
[1754816502014,1.585,4215.6,4215.5,0.4744]
[1754816502324,0.6152,4215.6,4215.3,0.47442]
[1754816502626,1.585,4215.3,4215.2,0.47443]
[1754816503528,1.585,4215.3,4215.2,1.75813]
[1754816506329,1.585,4215.3,4215.2,1.34513]
[1754816506523,1.585,4215.3,4215.2,1.15943]
[1754816508128,1.585,4215.3,4215.2,1.57243]
[1754816508430,1.585,4215.3,4215.2,1.75813]
[1754816508631,1.585,4215.3,4215.2,2.02653]
[1754816509032,1.585,4215.3,4215.2,1.75813]
[1754816509832,1.585,4215.5,4215.4,1.75811]
[1754816510626,1.585,4215.5,4215.4,1.2837]
[1754816512123,1.585,4215.5,4215.4,0.685]
[1754816512827,1.585,4215.5,4215.4,1.2837]
[1754816514038,1.585,4215.5,4215.4,0.685]
[1754816514835,1.14,4215.5,4215.4,1.5521]
[1754816515032,1.585,4215.5,4215.4,1.5521]
[1754816515843,1.3123,4215.5,4215.4,1.5521]
[1754816517130,1.585,4215.5,4215.4,1.5521]
[1754816517736,1.585,4215.5,4215.4,1.2837]
[1754816519333,0.2756,4215.5,4215.4,1.5521]
[1754816519538,3.2078,4215.7,4215.6,0.6146]
[1754816519739,3.6687,4215.7,4215.6,1.5521]
[1754816520139,4.3478,4215.7,4215.6,1.5521]
[1754816520338,3.2078,4215.7,4215.6,1.5521]
[1754816520540,3.4834,4215.7,4215.6,1.5521]
[1754816520742,3.2078,4215.7,4215.6,1.71871705]
[1754816522244,0.4215,4216.2,4215.9,0.6146]
[1754816522441,4.63187031,4216.3,4216.2,2.02642]
[1754816522641,3.2078,4216.3,4216.2,2.02642]
[1754816522841,3.6687,4216.3,4216.2,2.02642]
[1754816523346,3.2078,4216.3,4216.2,2.02642]
[1754816525540,0.6419,4217.1,4217.0,0.8624]
[1754816525739,0.9524,4217.0,4216.1,0.2703]
[1754816526044,1.3261,4216.7,4216.6,0.4228]
[1754816526238,1.5943,4216.7,4216.6,0.816]
[1754816526438,1.5943,4216.7,4216.6,1.2386]
[1754816528346,1.5943,4216.7,4216.6,0.6761]
[1754816528546,0.6419,4216.7,4216.6,0.2533]
[1754816528845,0.47428,4216.6,4216.0,0.6465]
[1754816529039,1.5943,4216.1,4216.0,1.2386]
[1754816529245,1.5943,4216.1,4216.0,0.6761]
[1754816529751,1.5943,4216.1,4216.0,1.2386]
[1754816530042,3.625,4216.4,4216.3,0.5921]
[1754816530247,4.2669,4216.4,4216.3,1.5089]
[1754816530441,4.5351,4216.4,4216.3,1.5089]
[1754816530648,4.8021,4216.4,4216.3,1.2386]
[1754816530840,0.6419,4216.2,4216.1,0.72763]
[1754816531045,0.6419,4216.0,4215.9,0.47435]
[1754816531347,0.6419,4215.8,4215.7,0.47438]
[1754816531547,4.8021,4215.8,4215.7,0.47438]
[1754816532442,4.8021,4215.8,4215.7,0.72768]
[1754816533139,3.6506,4215.8,4215.7,1.71298]
[1754816533340,4.0678,4215.8,4215.7,1.98328]
[1754816533738,0.1758,4216.1,4216.0,1.31975]
[1754816533938,0.4428,4216.1,4216.0,1.98325]
[1754816534345,3.2078,4216.3,4216.2,0.5921]
[1754816534537,3.6506,4216.3,4216.2,1.5089]
[1754816534937,3.2078,4216.3,4216.2,1.5089]
[1754816535347,3.4748,4216.3,4216.2,1.5089]
[1754816535545,3.6506,4216.3,4216.2,1.5089]
[1754816536043,3.2078,4216.3,4216.2,1.5089]
[1754816536247,3.3836,4216.8,4216.7,0.89677]
[1754816536449,3.3836,4216.8,4216.7,1.71287]
[1754816536649,4.3481,4216.8,4216.7,1.98317]
[1754816536951,4.8021,4216.8,4216.7,1.98317]
[1754816537250,3.3836,4216.8,4216.7,1.98317]
[1754816537552,3.6506,4216.8,4216.7,1.98317]
[1754816537952,3.9309,4216.8,4216.7,1.98317]
[1754816538153,4.3481,4216.8,4216.7,1.98317]
[1754816539053,3.2078,4216.8,4216.7,1.98317]
[1754816540446,0.4428,4217.2,4217.1,1.98312]
[1754816540641,3.4748,4217.3,4217.2,0.2703]
[1754816540846,3.6506,4217.3,4217.2,1.5089]
[1754816541345,3.2078,4217.3,4217.2,1.5089]
[1754816541852,3.6506,4217.3,4217.2,1.5089]
[1754816542152,4.3481,4217.3,4217.2,1.5089]
[1754816543148,3.9309,4217.3,4217.2,1.5089]
[1754816543350,3.6506,4217.3,4217.2,1.5089]
[1754816544054,3.2078,4217.3,4217.2,1.5089]
[1754816544352,0.267,4217.7,4217.6,0.5921]
[1754816544353,0.9089,4217.7,4217.6,0.5921]
[1754816544551,1.5943,4217.7,4217.6,1.98307]
[1754816544747,0.1758,4217.7,4217.6,1.98307]
[1754816545051,1.5943,4217.7,4217.6,1.98307]
[1754816545449,0.9645,4217.8,4217.7,1.17]
[1754816545651,1.5943,4217.8,4217.7,1.5089]
[1754816545851,1.5943,4217.8,4217.7,1.2386]
[1754816546754,1.5943,4217.8,4217.7,1.5089]
[1754816546947,0.267,4217.8,4217.7,1.5089]
[1754816547144,0.4428,4217.8,4217.7,1.5089]
[1754816547544,1.1403,4217.8,4217.7,1.5089]
[1754816547749,1.5943,4217.8,4217.7,1.2386]
[1754816548450,1.5943,4217.8,4217.7,1.5089]
[1754816548656,1.1403,4217.8,4217.7,1.5089]
[1754816549154,1.3261,4217.8,4217.7,1.5089]
[1754816549744,3.2078,4217.9,4217.8,1.98304]
[1754816549950,3.8497,4218.4,4218.3,0.5921]
[1754816550149,4.8021,4218.4,4218.3,1.2386]
[1754816550746,3.9309,4218.4,4218.3,0.8454]
[1754816550952,4.8021,4218.4,4218.3,1.71269]
[1754816551248,4.8021,4218.4,4218.3,0.8454]
[1754816551450,0.4561,4217.6,4217.5,1.71278]
[1754816551651,1.5943,4217.6,4217.5,1.98308]
[1754816552054,3.9309,4217.9,4217.8,0.72744]
[1754816552356,4.8021,4217.9,4217.8,1.71274]
[1754816553756,4.8021,4217.9,4217.8,1.98304]
[1754816554261,4.3481,4217.9,4217.8,1.98304]
[1754816554862,4.8021,4217.9,4217.8,1.98304]
[1754816555057,3.6506,4217.9,4217.8,1.98304]
[1754816555262,4.3481,4217.9,4217.8,1.98304]
[1754816555455,4.8093,4217.9,4217.8,1.71274]
[1754816555657,4.8093,4217.9,4217.0,1.18559]
[1754816555658,0.6215,4217.2,4217.1,1.47282]
[1754816555955,1.5663,4217.2,4217.1,1.75012]
[1754816556353,1.5663,4217.2,4217.1,0.47422]
[1754816557660,1.2909,4217.0,4216.9,0.47424]
[1754816557855,1.5663,4217.0,4216.9,0.47424]
[1754816558258,1.5663,4217.0,4216.9,1.57964]
[1754816558463,1.5663,4217.0,4216.9,1.75014]
[1754816558862,1.5663,4217.0,4216.9,1.19364]
[1754816559063,1.5663,4217.0,4216.9,0.47424]
[1754816559362,1.5663,4217.0,4216.9,1.75014]
[1754816559562,1.5663,4217.0,4216.9,2.02024]
[1754816559760,1.5663,4217.0,4216.9,1.75014]
[1754816560058,1.5663,4217.0,4216.9,1.36414]
[1754816560265,1.5663,4217.0,4216.9,1.75014]
[1754816560658,1.5663,4217.0,4216.9,2.02024]
[1754816560865,1.5663,4217.0,4216.9,1.75014]
[1754816561057,0.8996,4217.0,4216.9,0.65804]
[1754816561262,1.5663,4217.0,4216.9,2.02024]
[1754816562162,0.1705,4217.0,4216.9,1.75014]
[1754816562360,0.54012668,4217.3,4215.5,21.768]
[1754816562361,1.5663,4217.3,4217.2,1.3569]
[1754816562561,2.10642668,4217.3,4217.2,1.3569]
[1754816562959,0.54012668,4217.3,4217.2,1.7501]
[1754816563259,4.7741,4217.4,4217.3,0.8899]
[1754816563466,1.5663,4217.3,4217.2,0.4742]
[1754816563968,1.5663,4217.2,4217.1,0.75152]
[1754816564161,1.1038,4217.2,4217.1,1.75012]
[1754816564360,0.2781,4217.2,4217.1,2.02022]
[1754816565055,0.4486,4217.2,4217.1,2.02022]
[1754816565664,3.2078,4217.4,4217.1,2.02022]
[1754816565861,1.2909,4217.3,4217.2,1.546]
[1754816566969,0.4486,4217.3,4217.2,1.546]
[1754816567469,1.1038,4217.3,4217.2,1.546]